[Event "WALTON BAN-chT 2019"]
[Site "Bangladesh"]
[Date "2019.12.15"]
[Round "8.3"]
[White "Mchedlishvili, Mikheil"]
[Black "Kusatha, Niken"]
[Result "1-0"]
[ECO "D35"]
[WhiteElo "2567"]
[BlackElo "1949"]
[Annotator "RC"]
[PlyCount "89"]
[EventDate "2019.12.07"]
[EventType "team-tourn"]
[EventCountry "BAN"]
[SourceTitle "playchess.com"]
[Source "ChessBase"]
[SourceQuality "1"]
[TimeControl "5400+30"]

1. c4 {[%emt 0:00:06]} Nf6 {[%emt 0:00:00]} 2. Nc3 {[%emt 0:00:31]} e6 {[%emt 0:00:00]} 3. d4 {[%emt 0:00:42]} d5 {[%emt 0:00:52]} 4. cxd5 {[%emt 0:00:31]} exd5 {[%emt 0:00:07]} 5. Bg5 {[%emt 0:00:31]} Be7 {[%emt 0:00:35]} 6. e3 {[%emt 0:00:31]} O-O {[%emt 0:00:29]} 7. Bd3 {[%emt 0:00:29]} Re8 {[%emt 0:03:55]} 8. Nge2 {[%emt 0:01:26]} h6 {[%emt 0:02:37]} 9. Bh4 {[%emt 0:00:55]} c6 {[%emt 0:03:08]} 10. O-O {[%emt 0:02:06]} Ne4 {[%emt 0:02:05]} 11. Bxe7 {[%emt 0:15:45]} Nxc3 {[%emt 0:02:08]} 12. bxc3 {[%emt 0:00:29]} Qxe7 {[%emt 0:02:35]} 13. c4 {[%emt 0:06:01]} Be6 {[%emt 0:07:27]} 14. cxd5 {[%emt 0:05:00]} Bxd5 {[%emt 0:01:11]} 15. Qb1 {[%emt 0:03:09]} Na6 {[%emt 0:04:15]} 16. Bxa6 {[%emt 0:02:50]} bxa6 {[%emt 0:00:42]} 17. Nf4 {[%emt 0:01:46]} Be4 {[%emt 0:03:01]} 18. Qc1 {[%emt 0:00:49]} g5 {[%emt 0:04:32]} 19. Ne2 {[%emt 0:00:53]} Bd3 {[%emt 0:03:00]} 20. Qd2 {[%emt 0:00:53]} Qa3 {[%emt 0:10:30]} 21. Rfc1 {[%emt 0:02:36]} Rab8 {[%emt 0:01:18]} 22. Ng3 {[%emt 0:05:03]} Rb2 {[%emt 0:09:29]} 23. Qc3 {[%emt 0:00:19]} Qxc3 {[%emt 0:00:54]} 24. Rxc3 {[%emt 0:00:03]} Bc2 {[%emt 0:00:12]} 25. Rxc6 {[%emt 0:02:31]} Reb8 {[%emt 0:00:14]} 26. h3 {[%emt 0:01:12]} R8b6 {[%emt 0:01:16]} 27. d5 {[%emt 0:02:33]} Rxc6 {[%emt 0:04:13]} 28. dxc6 {[%emt 0:00:15]} Rb6 {[%emt 0:00:06]} 29. c7 {[%emt 0:06:09]} Rc6 {[%emt 0:00:49]} 30. Rc1 {[%emt 0:00:48]} Rxc7 {[%emt 0:00:19]} 31. Nf5 {[%emt 0:00:17]} Rc4 {[%emt 0:01:24]} 32. Nxh6+ {[%emt 0:00:17]} Kg7 {[%emt 0:01:50]} 33. Ng4 {[%emt 0:01:35]} Bb3 {[%emt 0:00:58]} 34. Rxc4 {[%emt 0:00:13]} Bxc4 {[%emt 0:00:13]} 35. a3 {[%emt 0:00:08]} f6 {[%emt 0:01:49]} 36. f4 {[%emt 0:00:22]} Be6 {[%emt 0:00:44]} 37. Kf2 {[%emt 0:00:20]} Bd5 {[%emt 0:01:59]} 38. Kg3 {[%emt 0:00:42]} Kg6 {[%emt 0:00:42]} 39. Nf2 {[%emt 0:04:00]} gxf4+ {[%emt 0:01:59]} 40. exf4 {[%emt 0:00:02]} a5 {[%emt 0:00:37]} 41. Ng4 {[%emt 0:00:12]} a4 {[%emt 0:01:31]} 42. Ne3 {[%emt 0:00:36]} Be4 {[%emt 0:00:28]} 43. Kh4 {[%emt 0:00:43]} Kf7 {[%emt 0:01:33]} 44. f5 {[%emt 0:00:26]} Ke7 {[%emt 0:00:13]} 45. g4 {[%emt 0:00:31]} 1-0

[Event "WALTON BAN-chT 2019"]
[Site "Bangladesh"]
[Date "2019.12.15"]
[Round "8.11"]
[White "Islam, Khandaker Aminul"]
[Black "Khusenkhojaev, Muhammad"]
[Result "0-1"]
[ECO "A45"]
[WhiteElo "2206"]
[BlackElo "2427"]
[Annotator "RC"]
[PlyCount "62"]
[EventDate "2019.12.07"]
[EventType "team-tourn"]
[EventCountry "BAN"]
[SourceTitle "playchess.com"]
[Source "ChessBase"]
[SourceQuality "1"]
[TimeControl "5400+30"]

1. d4 {[%emt 1:30:30]} Nf6 {[%emt 1:30:30]} 2. Bg5 {[%emt 0:00:30]} e6 {[%emt 0:00:30]} 3. Nd2 {[%emt 0:00:30]} h6 {[%emt 0:00:30]} 4. Bh4 {[%emt 0:00:30]} c5 {[%emt 0:00:30]} 5. e4 {[%emt 0:00:30]} cxd4 {[%emt 0:00:30]} 6. e5 {[%emt 0:00:30]} g5 {[%emt 0:00:30]} 7. Bg3 {[%emt 0:00:30]} Nd5 {[%emt 0:00:30]} 8. h4 {[%emt 0:00:30]} gxh4 {[%emt 0:00:30]} 9. Bxh4 {[%emt 0:00:30]} Qa5 {[%emt 0:00:30]} 10. Ngf3 {[%emt 0:00:30]} Nc6 {[%emt 0:00:30]} 11. Bc4 {[%emt 0:00:30]} Ne3 {[%emt 0:00:30]} 12. fxe3 {[%emt 0:00:30]} dxe3 {[%emt 0:00:30]} 13. Bf6 {[%emt 0:00:30]} Rg8 {[%emt 0:00:30]} 14. c3 {[%emt 0:00:30]} exd2+ {[%emt 0:00:30]} 15. Qxd2 {[%emt 0:00:30]} b5 {[%emt 0:00:30]} 16. Bd3 {[%emt 0:00:30]} b4 {[%emt 0:00:30]} 17. Be4 {[%emt 0:00:30]} bxc3 {[%emt 0:00:30]} 18. bxc3 {[%emt 0:00:30]} Qa4 {[%emt 0:00:30]} 19. Bc2 {[%emt 0:00:30]} Qg4 {[%emt 0:00:30]} 20. Rh2 {[%emt 0:00:30]} Rb8 {[%emt 0:00:30]} 21. Rb1 {[%emt 0:00:30]} Rxb1+ {[%emt 0:00:30]} 22. Bxb1 Ba6 {[%emt 0:00:30]} 23. Kd1 {[%emt 0:01:00]} Qa4+ {[%emt 0:00:30]} 24. Qc2 {[%emt 0:00:30]} Qb5 {[%emt 0:00:30]} 25. a4 {[%emt 0:00:30]} Qf1+ {[%emt 0:00:30]} 26. Ne1 {[%emt 0:00:30]} Rg3 {[%emt 0:00:30]} 27. Qd2 {[%emt 0:00:30]} Qc4 {[%emt 0:00:30]} 28. Rh4 {[%emt 0:00:30]} Rg4 {[%emt 0:00:30]} 29. Rxg4 {[%emt 0:00:30]} Qxg4+ {[%emt 0:00:30]} 30. Nf3 {[%emt 0:00:30]} Qxa4+ {[%emt 0:00:30]} 31. Bc2 {[%emt 0:00:30]} Qa1+ {[%emt 0:00:30]} 0-1

[Event "WALTON BAN-chT 2019"]
[Site "Bangladesh"]
[Date "2019.12.15"]
[Round "9.5"]
[White "Alam, Monjur"]
[Black "Bhattacharyya Soham"]
[Result "0-1"]
[ECO "E94"]
[WhiteElo "1899"]
[BlackElo "1944"]
[Annotator "NA RC"]
[PlyCount "85"]
[EventDate "2019.12.07"]
[EventType "team-tourn"]
[EventCountry "BAN"]
[SourceTitle "playchess.com"]
[Source "ChessBase"]
[SourceQuality "1"]
[TimeControl "5400+30"]

1. d4 {[%emt 0:04:50]} Nf6 {[%emt 0:00:57]} 2. c4 {[%emt 0:00:27]} g6 {[%emt 0:01:13]} 3. Nf3 {[%emt 0:00:12]} Bg7 {[%emt 0:00:08]} 4. Nc3 {[%emt 0:00:24]} O-O {[%emt 0:01:34]} 5. e4 {[%emt 0:00:19]} d6 {[%emt 0:01:14]} 6. Be2 {[%emt 0:00:09]} Nbd7 {[%emt 0:00:09]} 7. O-O {[%emt 0:00:58]} e5 {[%emt 0:00:51]} 8. d5 {[%emt 0:00:44]} Nc5 {[%emt 0:01:35]} 9. Qc2 {[%emt 0:01:45]} a5 {[%emt 0:00:45]} 10. Ne1 {[%emt 0:04:19]} Ne8 {[%emt 0:03:01]} 11. Be3 {[%emt 0:01:04]} f5 {[%emt 0:02:31]} 12. f3 {[%emt 0:00:32]} f4 {[%emt 0:01:41]} 13. Bf2 {[%emt 0:00:11]} g5 {[%emt 0:00:15]} 14. Nd3 {[%emt 0:01:08]} b6 {[%emt 0:02:04]} 15. a3 {[%emt 0:04:42]} h5 {[%emt 0:08:16]} 16. b4 {[%emt 0:05:44]} Nxd3 {[%emt 0:02:24]} 17. Qxd3 {[%emt 0:00:41]} g4 {[%emt 0:02:29]} 18. Kh1 {[%emt 0:03:05]} Qg5 {[%emt 0:06:01]} 19. Qd2 {[%emt 0:07:16]} Qg6 {[%emt 0:18:14]} 20. Rfc1 {[%emt 0:07:10]} g3 {[%emt 0:05:22]} 21. Bg1 {[%emt 0:01:36]} h4 {[%emt 0:01:28]} 22. Bf1 {[%emt 0:05:11]} gxh2 {[%emt 0:02:44]} 23. Bxh2 {[%emt 0:00:50]} Rf7 {[%emt 0:04:57]} 24. Nb5 {[%emt 0:02:54]} Bf8 {[%emt 0:01:15]} 25. Qf2 {[%emt 0:08:23]} Nf6 {[%emt 0:05:32]} 26. Nc3 {[%emt 0:05:18]} Nh5 {[%emt 0:03:09]} 27. Na4 {[%emt 0:04:38]} Ng3+ {[%emt 0:03:23]} 28. Kg1 {[%emt 0:00:27]} Bd7 {[%emt 0:00:49]} 29. Nb2 {[%emt 0:01:20]} Rg7 {[%emt 0:03:32]} 30. Nd3 {[%emt 0:02:17]} h3 {[%emt 0:02:35]} 31. Ra2 {[%emt 0:05:45]} axb4 {[%emt 0:01:57]} 32. Nxb4 {[%emt 0:03:34]} Be7 {[%emt 0:05:22]} 33. Bxg3 {[%emt 0:05:32]} fxg3 {[%emt 0:00:30]} 34. Qe2 {[%emt 0:00:14]} hxg2 {[%emt 0:01:26]} 35. Bxg2 {[%emt 0:00:48]} Rh7 {[%emt 0:03:40]} 36. Nc2 {[%emt 0:02:53]} Bg5 {[%emt 0:01:25]} 37. Rb1 {[%emt 0:02:07]} Rh2 {[%emt 0:01:30]} 38. Ne3 {[%emt 0:01:11]} Bh3 {[%emt 0:00:12]} 39. Qe1 {[%emt 0:00:28]} Bxe3+ {[%emt 0:01:28]} 40. Qxe3 {[%emt 0:00:03]} Kg7 {[%emt 0:01:23]} 41. Rbb2 {[%emt 0:01:02]} Rh8 {[%emt 0:00:15]} 42. Bxh3 {[%emt 0:00:55]} R2xh3 {[%emt 0:00:12]} 43. Kf1 {[%emt 0:08:24]} 0-1

[Event "WALTON BAN-chT 2019"]
[Site "Bangladesh"]
[Date "2019.12.15"]
[Round "9.10"]
[White "Islam, Khandaker Aminul"]
[Black "Subedi, Rajan"]
[Result "1-0"]
[ECO "D00"]
[WhiteElo "2206"]
[BlackElo "1949"]
[Annotator "RC"]
[PlyCount "75"]
[EventDate "2019.12.07"]
[EventType "team-tourn"]
[EventCountry "BAN"]
[SourceTitle "playchess.com"]
[Source "ChessBase"]
[SourceQuality "1"]
[TimeControl "5400+30"]

1. d4 {[%emt 0:00:00]} d5 {[%emt 0:00:00]} 2. Bf4 {[%emt 0:00:00]} c5 {[%emt 0:00:09]} 3. e3 {[%emt 0:00:00]} Nc6 {[%emt 0:00:15]} 4. c3 {[%emt 0:00:02]} Qb6 {[%emt 0:00:24]} 5. Qb3 {[%emt 0:00:29]} c4 {[%emt 0:00:21]} 6. Qc2 {[%emt 0:00:03]} Bf5 {[%emt 0:02:55]} 7. Qxf5 {[%emt 0:00:08]} Qxb2 {[%emt 0:00:08]} 8. Qxd5 {[%emt 0:00:09]} Qxa1 {[%emt 0:00:57]} 9. Qb5 {[%emt 0:00:06]} O-O-O {[%emt 0:02:21]} 10. Bxc4 {[%emt 0:00:34]} e5 {[%emt 0:00:10]} 11. Ne2 {[%emt 0:00:51]} exf4 {[%emt 0:01:28]} 12. O-O {[%emt 0:00:10]} Bb4 {[%emt 0:02:56]} 13. Qf5+ {[%emt 0:01:43]} Kb8 {[%emt 0:02:50]} 14. Qc2 {[%emt 0:00:10]} fxe3 {[%emt 0:02:02]} 15. fxe3 {[%emt 0:00:10]} Bd6 {[%emt 0:00:59]} 16. Nd2 {[%emt 0:02:40]} Qxf1+ {[%emt 0:00:47]} 17. Nxf1 {[%emt 0:00:11]} Nh6 {[%emt 0:00:32]} 18. e4 {[%emt 0:01:14]} f6 {[%emt 0:00:13]} 19. Qb2 {[%emt 0:02:04]} Rhe8 {[%emt 0:00:12]} 20. Bb5 {[%emt 0:04:06]} Rc8 {[%emt 0:01:53]} 21. d5 {[%emt 0:01:43]} Ne5 {[%emt 0:00:45]} 22. Bxe8 {[%emt 0:00:09]} Rxe8 {[%emt 0:00:14]} 23. h3 {[%emt 0:00:49]} Nhf7 {[%emt 0:00:16]} 24. Nd2 {[%emt 0:02:05]} Bc5+ {[%emt 0:01:16]} 25. Nd4 {[%emt 0:01:19]} Nd6 {[%emt 0:01:31]} 26. Qb1 {[%emt 0:01:04]} a6 {[%emt 0:00:40]} 27. Kh1 {[%emt 0:00:57]} g5 {[%emt 0:01:37]} 28. Ne6 {[%emt 0:01:09]} Be3 {[%emt 0:01:39]} 29. Nf3 {[%emt 0:01:26]} h5 {[%emt 0:01:31]} 30. Nxe5 {[%emt 0:01:59]} fxe5 {[%emt 0:03:11]} 31. Qb4 {[%emt 0:00:22]} Nf7 {[%emt 0:04:57]} 32. g3 {[%emt 0:06:49]} h4 {[%emt 0:00:45]} 33. g4 {[%emt 0:00:10]} Ka7 {[%emt 0:00:33]} 34. c4 {[%emt 0:01:08]} Nd8 {[%emt 0:00:46]} 35. Ng7 {[%emt 0:04:04]} Rg8 {[%emt 0:02:17]} 36. Qe7 {[%emt 0:00:14]} Bf4 {[%emt 0:02:46]} 37. c5 {[%emt 0:00:23]} Kb8 {[%emt 0:00:08]} 38. Nf5 {[%emt 0:00:34]} 1-0

[Event "WALTON BAN-chT 2019"]
[Site "Bangladesh"]
[Date "2019.12.16"]
[Round "10.2"]
[White "Ahmed, Sheikh Nasir"]
[Black "Murshed, Niaz"]
[Result "1/2-1/2"]
[ECO "C18"]
[WhiteElo "2187"]
[BlackElo "2413"]
[Annotator "ChessBase"]
[PlyCount "147"]
[EventDate "2019.12.07"]
[EventType "team-tourn"]
[EventCountry "BAN"]
[SourceTitle "playchess.com"]
[Source "ChessBase"]
[SourceQuality "1"]
[TimeControl "5400+30"]

1. e4 {[%emt 0:00:00]} e6 {[%emt 0:00:00]} 2. d4 {[%emt 0:00:04]} d5 {[%emt 0:00:00]} 3. Nc3 {[%emt 0:00:06]} Bb4 {[%emt 0:00:00]} 4. e5 {[%emt 0:00:13]} c5 {[%emt 0:00:12]} 5. a3 {[%emt 0:00:11]} Bxc3+ {[%emt 0:00:07]} 6. bxc3 {[%emt 0:00:07]} Qc7 {[%emt 0:00:09]} 7. Qg4 {[%emt 0:00:52]} f6 {[%emt 0:00:39]} 8. Qg3 {[%emt 0:12:52]} Nc6 {[%emt 0:03:33]} 9. exf6 {[%emt 0:03:18]} Qxg3 {[%emt 0:00:08]} 10. hxg3 {[%emt 0:00:02]} Nxf6 {[%emt 0:00:10]} 11. dxc5 {[%emt 0:04:13]} e5 {[%emt 0:01:23]} 12. Nf3 {[%emt 0:00:38]} a6 {[%emt 0:03:49]} 13. Bg5 {[%emt 0:11:39]} Bf5 {[%emt 0:04:21]} 14. c4 {[%emt 0:11:57]} d4 {[%emt 0:10:33]} 15. Bd3 {[%emt 0:06:36]} e4 {[%emt 0:09:54]} 16. Bxf6 {[%emt 0:00:35]} O-O {[%emt 0:04:43]} 17. Nxd4 {[%emt 0:04:22]} Nxd4 {[%emt 0:21:46]} 18. Bxd4 {[%emt 0:00:40]} exd3 {[%emt 0:00:04]} 19. c3 {[%emt 0:03:37]} Be6 {[%emt 0:08:41]} 20. Rb1 {[%emt 0:01:29]} Rf7 {[%emt 0:00:18]} 21. Kd2 {[%emt 0:07:11]} Bxc4 {[%emt 0:01:19]} 22. Rhe1 {[%emt 0:00:13]} Bb5 {[%emt 0:02:18]} 23. f3 {[%emt 0:02:48]} Re8 {[%emt 0:01:50]} 24. Rxe8+ {[%emt 0:02:29]} Bxe8 {[%emt 0:00:06]} 25. Rb4 {[%emt 0:01:28]} Re7 {[%emt 0:04:39]} 26. Kxd3 {[%emt 0:00:47]} Bb5+ {[%emt 0:00:05]} 27. c4 {[%emt 0:00:14]} Bc6 {[%emt 0:00:03]} 28. Rb1 {[%emt 0:00:49]} h5 {[%emt 0:01:00]} 29. Rh1 {[%emt 0:00:18]} g6 {[%emt 0:00:05]} 30. Be3 {[%emt 0:02:50]} Rd7+ {[%emt 0:00:48]} 31. Ke2 {[%emt 0:09:12]} Ba4 {[%emt 0:00:56]} 32. Rh4 {[%emt 0:00:21]} Bd1+ {[%emt 0:05:41]} 33. Ke1 {[%emt 0:01:54]} Bc2 {[%emt 0:01:01]} 34. c6 {[%emt 0:05:27]} bxc6 {[%emt 0:00:19]} 35. g4 {[%emt 0:00:03]} hxg4 {[%emt 0:04:48]} 36. Rxg4 {[%emt 0:00:03]} Bf5 {[%emt 0:00:05]} 37. Rf4 {[%emt 0:01:26]} Rd3 {[%emt 0:00:10]} 38. Bc5 {[%emt 0:00:12]} Rc3 {[%emt 0:00:59]} 39. g4 {[%emt 0:02:48]} Be6 {[%emt 0:02:19]} 40. Rf6 {[%emt 0:00:36]} Bf7 {[%emt 0:03:33]} 41. Kf2 {[%emt 0:00:57]} Rxc4 {[%emt 0:00:28]} 42. Rxc6 {[%emt 0:00:17]} g5 {[%emt 0:01:12]} 43. Ke3 {[%emt 0:01:12]} a5 {[%emt 0:02:16]} 44. Kd3 {[%emt 0:00:49]} Rf4 {[%emt 0:00:22]} 45. Be3 {[%emt 0:00:24]} Rxf3 {[%emt 0:00:27]} 46. Rc5 {[%emt 0:00:04]} a4 {[%emt 0:00:17]} 47. Rxg5+ {[%emt 0:00:04]} Kh7 {[%emt 0:00:07]} 48. Ke4 {[%emt 0:01:14]} Rf1 {[%emt 0:01:01]} 49. Ra5 {[%emt 0:00:43]} Bb3 {[%emt 0:00:27]} 50. Bf4 {[%emt 0:00:30]} Re1+ {[%emt 0:01:11]} 51. Kf5 {[%emt 0:00:20]} Re7 {[%emt 0:00:49]} 52. Be5 {[%emt 0:00:26]} Rf7+ {[%emt 0:01:11]} 53. Kg5 {[%emt 0:00:23]} Re7 {[%emt 0:00:22]} 54. Rc5 {[%emt 0:02:24]} Ba2 {[%emt 0:00:53]} 55. Kf5 {[%emt 0:00:23]} Rf7+ {[%emt 0:01:28]} 56. Ke4 {[%emt 0:01:21]} Kg6 {[%emt 0:00:51]} 57. Bf4 {[%emt 0:01:08]} Re7+ {[%emt 0:00:16]} 58. Kf3 {[%emt 0:00:07]} Bb3 {[%emt 0:00:43]} 59. Rh5 {[%emt 0:00:18]} Bd1+ {[%emt 0:01:11]} 60. Kg3 {[%emt 0:00:12]} Bc2 {[%emt 0:01:12]} 61. Rh6+ {[%emt 0:00:03]} Kg7 {[%emt 0:00:05]} 62. Rc6 {[%emt 0:00:24]} Bg6 {[%emt 0:00:30]} 63. Kh4 {[%emt 0:00:19]} Be8 {[%emt 0:00:48]} 64. Ra6 {[%emt 0:00:17]} Bb5 {[%emt 0:00:32]} 65. Rb6 {[%emt 0:00:10]} Bc4 {[%emt 0:00:19]} 66. Kg5 {[%emt 0:00:21]} Bb3 {[%emt 0:00:11]} 67. Bd6 {[%emt 0:00:27]} Rd7 {[%emt 0:00:30]} 68. Be5+ {[%emt 0:00:10]} Kf7 {[%emt 0:00:03]} 69. Rf6+ {[%emt 0:01:17]} Ke7 {[%emt 0:00:02]} 70. Kg6 {[%emt 0:01:07]} Bc2+ {[%emt 0:00:30]} 71. Kg7 {[%emt 0:01:51]} Rd5 {[%emt 0:00:11]} 72. Bf4 {[%emt 0:00:20]} Kd7 {[%emt 0:01:21]} 73. g5 {[%emt 0:00:24]} Rf5 {[%emt 0:00:20]} 74. Rxf5 {[%emt 0:01:08]} 1/2-1/2

[Event "WALTON BAN-chT 2019"]
[Site "Bangladesh"]
[Date "2019.12.16"]
[Round "10.4"]
[White "Subrota, Biswas"]
[Black "Mohammad Fahad, Rahman"]
[Result "1-0"]
[ECO "E12"]
[WhiteElo "2134"]
[BlackElo "2294"]
[Annotator "ChessBase"]
[PlyCount "85"]
[EventDate "2019.12.07"]
[EventType "team-tourn"]
[EventCountry "BAN"]
[SourceTitle "playchess.com"]
[Source "ChessBase"]
[SourceQuality "1"]
[TimeControl "5400+30"]

1. d4 {[%emt 0:00:00]} Nf6 {[%emt 0:00:00]} 2. Nf3 {[%emt 0:00:00]} e6 {[%emt 0:00:00]} 3. c4 {[%emt 0:00:00]} b6 {[%emt 0:00:16]} 4. a3 {[%emt 0:00:00]} Bb7 {[%emt 0:00:47]} 5. Nc3 {[%emt 0:00:00]} d5 {[%emt 0:00:16]} 6. cxd5 {[%emt 0:00:13]} Nxd5 {[%emt 0:00:13]} 7. Qc2 {[%emt 0:01:30]} Nxc3 {[%emt 0:00:33]} 8. bxc3 {[%emt 0:00:30]} Nd7 {[%emt 0:00:27]} 9. e4 {[%emt 0:01:05]} c5 {[%emt 0:00:39]} 10. Bd3 {[%emt 0:00:30]} Qc7 {[%emt 0:00:15]} 11. Qd2 {[%emt 0:02:25]} Be7 {[%emt 0:04:56]} 12. O-O {[%emt 0:00:19]} O-O {[%emt 0:03:11]} 13. Qe2 {[%emt 0:05:50]} Rfe8 {[%emt 0:07:30]} 14. Ra2 {[%emt 0:03:27]} a6 {[%emt 0:06:33]} 15. a4 {[%emt 0:05:21]} c4 {[%emt 0:03:10]} 16. Bc2 {[%emt 0:16:07]} b5 {[%emt 0:10:45]} 17. Ba3 {[%emt 0:01:43]} Bxa3 {[%emt 0:04:41]} 18. Rxa3 {[%emt 0:00:00]} Bc6 {[%emt 0:00:46]} 19. Rfa1 {[%emt 0:02:38]} Reb8 {[%emt 0:02:16]} 20. Qd2 {[%emt 0:05:24]} Nf6 {[%emt 0:15:47]} 21. Qe3 {[%emt 0:01:12]} b4 {[%emt 0:09:29]} 22. cxb4 {[%emt 0:00:18]} Rxb4 {[%emt 0:00:13]} 23. Rc3 {[%emt 0:05:25]} h6 {[%emt 0:04:18]} 24. Ne5 {[%emt 0:01:01]} Rd8 {[%emt 0:04:36]} 25. a5 {[%emt 0:16:57]} Bb5 {[%emt 0:01:41]} 26. Nd3 {[%emt 0:01:54]} Qe7 {[%emt 0:04:15]} 27. Nxb4 {[%emt 0:00:02]} Qxb4 {[%emt 0:00:09]} 28. f3 {[%emt 0:00:25]} Nd7 {[%emt 0:00:50]} 29. d5 {[%emt 0:09:05]} exd5 {[%emt 0:01:23]} 30. Rd1 {[%emt 0:00:15]} Nf6 {[%emt 0:03:40]} 31. e5 {[%emt 0:00:19]} Re8 {[%emt 0:00:10]} 32. Qd4 {[%emt 0:00:15]} Nd7 {[%emt 0:01:41]} 33. f4 {[%emt 0:01:38]} Qxa5 {[%emt 0:00:39]} 34. Bf5 {[%emt 0:03:05]} Nb8 {[%emt 0:04:47]} 35. Rg3 {[%emt 0:02:29]} Nc6 {[%emt 0:00:01]} 36. Qc5 {[%emt 0:03:15]} d4 {[%emt 0:03:40]} 37. Bd7 {[%emt 0:04:31]} Qa4 {[%emt 0:00:05]} 38. Rc1 {[%emt 0:01:02]} Rd8 {[%emt 0:01:19]} 39. e6 {[%emt 0:00:01]} fxe6 {[%emt 0:01:23]} 40. Bxc6 {[%emt 0:00:12]} Kh8 {[%emt 0:01:34]} 41. Qe5 {[%emt 0:00:29]} Rg8 {[%emt 0:00:11]} 42. Rg6 {[%emt 0:00:01]} Kh7 {[%emt 0:00:53]} 43. Be4 {[%emt 0:00:01]} 1-0

[Event "WALTON BAN-chT 2019"]
[Site "Bangladesh"]
[Date "2019.12.17"]
[Round "11.2"]
[White "Murshed, Niaz"]
[Black "Rahman, Syed Mahfuzur"]
[Result "1/2-1/2"]
[ECO "D45"]
[WhiteElo "2413"]
[BlackElo "2159"]
[Annotator "ChessBase"]
[PlyCount "34"]
[EventDate "2019.12.07"]
[EventType "team-tourn"]
[EventCountry "BAN"]
[SourceTitle "playchess.com"]
[Source "ChessBase"]
[SourceQuality "1"]
[TimeControl "5400+30"]

1. d4 {[%emt 0:02:40]} d5 {[%emt 0:04:20]} 2. c4 {[%emt 0:00:11]} c6 {[%emt 0:00:40]} 3. Nc3 {[%emt 0:00:06]} Nf6 {[%emt 0:00:06]} 4. e3 {[%emt 0:00:11]} e6 {[%emt 0:07:21]} 5. Nf3 {[%emt 0:00:22]} Nbd7 {[%emt 0:00:44]} 6. Qc2 {[%emt 0:01:38]} Bd6 {[%emt 0:00:12]} 7. Be2 {[%emt 0:01:01]} O-O {[%emt 0:00:18]} 8. b3 {[%emt 0:02:29]} Qe7 {[%emt 0:07:15]} 9. O-O {[%emt 0:03:15]} dxc4 {[%emt 0:08:54]} 10. bxc4 {[%emt 0:01:06]} e5 {[%emt 0:00:25]} 11. h3 {[%emt 0:13:16]} Re8 {[%emt 0:06:07]} 12. c5 {[%emt 0:20:27]} Bc7 {[%emt 0:01:10]} 13. Bc4 {[%emt 0:00:12]} Nf8 {[%emt 0:01:17]} 14. Ng5 {[%emt 0:01:13]} Ne6 {[%emt 0:02:17]} 15. Nf3 {[%emt 0:00:09]} Nf8 {[%emt 0:00:05]} 16. Ng5 {[%emt 0:00:09]} Ne6 {[%emt 0:00:07]} 17. Nf3 {[%emt 0:00:07]} Nf8 {[%emt 0:00:05]} 1/2-1/2

[Event "WALTON BAN-chT 2019"]
[Site "Bangladesh"]
[Date "2019.12.17"]
[Round "11.3"]
[White "Samrat, Ghorai"]
[Black "Mchedlishvili, Mikheil"]
[Result "0-1"]
[ECO "B11"]
[WhiteElo "1861"]
[BlackElo "2567"]
[Annotator "ChessBase"]
[PlyCount "72"]
[EventDate "2019.12.07"]
[EventType "team-tourn"]
[EventCountry "BAN"]
[SourceTitle "playchess.com"]
[Source "ChessBase"]
[SourceQuality "1"]
[TimeControl "5400+30"]

1. e4 {[%emt 0:00:00]} c6 {[%emt 0:00:00]} 2. Nc3 {[%emt 0:00:27]} d5 {[%emt 0:00:04]} 3. Nf3 {[%emt 0:00:10]} a6 {[%emt 0:01:07]} 4. d4 {[%emt 0:00:45]} Bg4 {[%emt 0:00:23]} 5. Be2 {[%emt 0:03:21]} e6 {[%emt 0:00:25]} 6. h3 {[%emt 0:01:48]} Bh5 {[%emt 0:00:31]} 7. a3 {[%emt 0:00:49]} Nf6 {[%emt 0:01:36]} 8. Ng5 {[%emt 0:26:54]} Bg6 {[%emt 0:01:39]} 9. e5 {[%emt 0:00:44]} Nfd7 {[%emt 0:02:41]} 10. Bd3 {[%emt 0:07:33]} Be7 {[%emt 0:03:56]} 11. h4 {[%emt 0:04:11]} c5 {[%emt 0:08:18]} 12. f4 {[%emt 0:31:25]} cxd4 {[%emt 0:02:01]} 13. Ne2 {[%emt 0:01:01]} Qa5+ {[%emt 0:12:14]} 14. Bd2 {[%emt 0:03:10]} Qb6 {[%emt 0:00:15]} 15. b4 {[%emt 0:05:17]} Nc6 {[%emt 0:01:10]} 16. Rb1 {[%emt 0:01:37]} Rc8 {[%emt 0:01:04]} 17. Ng3 {[%emt 0:02:31]} Bxg5 {[%emt 0:06:54]} 18. hxg5 {[%emt 0:00:23]} Ne7 {[%emt 0:00:30]} 19. Nh5 {[%emt 0:03:25]} Kf8 {[%emt 0:06:34]} 20. g4 {[%emt 0:01:40]} Kg8 {[%emt 0:07:35]} 21. Qe2 {[%emt 0:01:21]} Be4 {[%emt 0:05:36]} 22. Rh3 {[%emt 0:01:46]} h6 {[%emt 0:03:12]} 23. Ng3 {[%emt 0:00:14]} Bxd3 {[%emt 0:01:30]} 24. cxd3 {[%emt 0:00:08]} hxg5 {[%emt 0:01:37]} 25. Rxh8+ {[%emt 0:00:19]} Kxh8 {[%emt 0:00:03]} 26. f5 {[%emt 0:01:14]} exf5 {[%emt 0:04:14]} 27. gxf5 {[%emt 0:00:34]} Qh6 {[%emt 0:00:48]} 28. e6 {[%emt 0:00:36]} fxe6 {[%emt 0:01:22]} 29. fxe6 {[%emt 0:00:09]} Nf8 {[%emt 0:00:37]} 30. Kf1 {[%emt 0:00:56]} Qh3+ {[%emt 0:03:29]} 31. Kf2 {[%emt 0:00:09]} Qh2+ {[%emt 0:02:32]} 32. Kf3 {[%emt 0:00:18]} Qxe2+ {[%emt 0:00:14]} 33. Nxe2 {[%emt 0:00:13]} Nxe6 {[%emt 0:00:06]} 34. Rc1 {[%emt 0:00:26]} Rf8+ {[%emt 0:00:26]} 35. Kg2 {[%emt 0:00:51]} Nf5 {[%emt 0:00:35]} 36. Rh1+ {[%emt 0:01:00]} Kg8 {[%emt 0:00:11]} 0-1